Cogmind - Beta 14 @@@ ROGUE MODE // 2024.09.02 @ 20:28:02 Player: ktur Result: Destroyed by 9D-GY5(R) with Subdweller Machine Gun Performance ------------- Evolutions (0) 0 Regions Visited (3) 600 Robots Destroyed (27) 135 Value Destroyed (713) 713 Prototype IDs (0) 0 Alien Tech Used (0) 0 Bonus (100) 100 TOTAL SCORE: 1548 Bonus ------- Follower Combat Kills 100 Cogmind --------- Core Integrity 0/250 Matter 280/300 Energy 80/100 System Corruption 10% Temperature Cool (0) Movement Rolling (140) Ox4 Location -10/Subcaves Parts ------- > --- POWER (1) -------- (None) > --- PROPULSION (2) --- Wheel > --- UTILITY (2) ------ High-capacity Storage Unit Makeshift Thermal Plating > --- WEAPON (2) ------- Subdweller Laser > --- INVENTORY (20) --- Ion Engine Subdweller Power Source Medium Storage Unit Humpback High-capacity Matter Pod (200) Subdweller Optics Experimental Sensor Array ECM Suite Core Shielding Heavy Riot Gun Medium Laser Small Laser Beam Rifle Assault Rifle Light Assault Rifle Battle Cannon Grenade Launcher Multitool Hammer Peak State ------------ > --- POWER ------------ Light Angular Momentum Engine > --- PROPULSION ------- Light Treads Compact Wheel > --- UTILITY ---------- High-capacity Storage Unit Makeshift Thermal Plating > --- WEAPON ----------- Battle Rifle Barrage Gun > --- INVENTORY -------- Ion Engine Subdweller Power Source Wheel Medium Storage Unit High-capacity Matter Pod Subdweller Optics Experimental Sensor Array ECM Suite Core Shielding Heavy Riot Gun Medium Laser Small Laser Subdweller Laser Assault Rifle Light Assault Rifle Battle Cannon Grenade Launcher Hammer [Rating: 20] Favorites ----------- Power Light Angular Momentum Engine Engine Light Angular Momentum Engine Propulsion Light Treads Treads Light Treads Wheel Wheel Utility Seismic Detector Device Seismic Detector Storage High-capacity Storage Unit Protection Makeshift Thermal Plating Weapon Assault Rifle Energy Gun Medium Laser Ballistic Gun Assault Rifle Launcher Grenade Launcher Special Weapon Mining Laser Impact Weapon Hammer Build | -11 -10 -10 -10 ------- Run | Yrd Mat Min Sub Slots Evolved . | . . . . Power . | . . . . Propulsion . | . . . . Utility . | . . . . Weapon . | . . . . Parts Attached 33 | 7 4 4 18 Power 2 | 1 . 1 . Engine 2 | 1 . 1 . Core . | . . . . Reactor . | . . . . Propulsion 6 | 2 . . 4 Treads 2 | 2 . . . Leg . | . . . . Wheel 4 | . . . 4 Hover . | . . . . Flight . | . . . . Utility 5 | 2 1 1 1 Device 1 | 1 . . . Storage 3 | 1 1 1 . Processor . | . . . . Hackware . | . . . . Protection 1 | . . . 1 Artifact . | . . . . Weapon 20 | 2 3 2 13 Energy Gun 5 | 1 1 1 2 Energy Cannon . | . . . . Ballistic Gun 6 | 1 . . 5 Ballistic Cannon . | . . . . Launcher 3 | . . 1 2 Special Weapon 1 | . 1 . . Impact Weapon 5 | . 1 . 4 Slashing Weapon . | . . . . Piercing Weapon . | . . . . Special Melee Weapon . | . . . . Unidentified Prototypes . | . . . . Parts Lost 10 | . . . 10 Power 1 | . . . 1 Propulsion 4 | . . . 4 Utility 1 | . . . 1 Weapon 4 | . . . 4 Highest Loss Streak 5 | . . . 5 To Critical Strikes . | . . . . Average Slot Usage (%) 98 | . 100 100 97 Engine 13 | . 14 14 13 Treads 24 | . 28 28 20 Wheel 3 | . . . 6 Device 11 | . 14 14 8 Storage 14 | . 14 14 14 Protection 2 | . . . 5 Energy Gun 7 | . 7 14 4 Ballistic Gun 15 | . 14 14 16 Impact Weapon 3 | . 1 . 6 Peak Build Rating 20 | 7 8 12 20 Average Rating 12 | 4 7 10 16 On Entrance 6 | . 7 8 12 Naked Turns . | . . . . Heaviest Build 60 | 15 20 54 60 Greatest Support 40 | 40 40 40 40 Greatest Overweight (x) 15 | . . 1 15 Average Overweight (x) 1 | . . . 3 Largest Inventory Capacity 20 | 8 10 20 20 Average Capacity 16 | 7 9 15 20 Most Carried 20 | 7 10 11 20 Average Carried 13 | 3 9 10 17 Final Capacity 20 | 8 10 20 20 Final Carried 20 | 5 10 11 20 Class Distribution -------------------- 100% | Mutant Dominant Class ---------------- Mutant | -10/Materials Mutant | -10/Mines Mutant | -10/Subcaves Resources | -11 -10 -10 -10 ----------- Run | Yrd Mat Min Sub Matter Collected 1035 | 253 178 211 393 Remotely . | . . . . Salvage Created 791 | 62 38 198 493 Parts 36 | 9 . 8 19 Haulers Intercepted . | . . . . Recyclers Shooed 1 | 1 . . . Parts Field Recycled . | . . . . Retrieved Matter . | . . . . Parts Self-Destructed 14 | . . . 14 Prevented . | . . . . Kills | -11 -10 -10 -10 ------- Run | Yrd Mat Min Sub Combat Hostiles Destroyed 22 | . 2 4 16 Guns 11 | . 2 2 7 AOE 10 | . . 2 8 Classes Destroyed 7 | 2 1 1 3 Worker 2 | 1 . 1 . Tunneler 3 | 3 . . . Swarmer 7 | . 2 . 5 Grunt 4 | . . 4 . Sentry 1 | . . . 1 Artisan 2 | . . . 2 Subdweller 10 | . . . 10 Best Kill Streak 5 | 2 1 2 5 Combat Bots Only 5 | . 1 2 5 Max Kills in Single Turn 2 | 2 1 1 2 Gunslinging . | . . . . Exploded 2 | . . 1 2 Melee . | . . . . Uniques/NPCs Destroyed . | . . . . Combat | -11 -10 -10 -10 -------- Run | Yrd Mat Min Sub Hostile Shots Fired 94 | . 11 12 71 Missed 28 | . 3 3 22 Damage Taken 1408 | . 65 150 1193 Core 260 | . 10 6 244 Absorbed by Shields . | . . . . Ignored by Resistances 34 | . . . 34 Core Remaining (%) 100 | 100 . . . Volleys Fired 73 | 8 13 11 41 Largest 2 | 2 2 2 2 Hottest 100 | 70 100 70 88 Shots Fired 127 | 16 23 20 68 Gun 113 | 16 21 18 58 Cannon . | . . . . Launcher 12 | . . 2 10 Special 2 | . 2 . . Kinetic 75 | 8 11 9 47 Thermal 40 | 8 12 9 11 Explosive 12 | . . 2 10 Electromagnetic . | . . . . Robot Hit Streak 15 | 2 4 4 15 Robot Miss Streak 4 | 2 4 1 2 Penetration Max . | . . . . Secondary Targets . | . . . . Shots Hit Robots 86 | 7 9 13 57 Core Hits 47 | 4 2 12 29 Critical Kills 1 | . . . 1 Critical Parts Destroyed . | . . . . Critical Strikes 3 | . . 1 2 Burn 1 | . . 1 . Destroy 2 | . . . 2 Melee Attacks 38 | . 1 . 37 Impact 38 | . 1 . 37 Slashing . | . . . . Piercing . | . . . . Sneak Attacks . | . . . . Combat Hostiles . | . . . . Follow-up Attacks . | . . . . Damage Inflicted 2525 | 119 135 461 1810 Guns 1049 | 108 135 168 638 Cannons . | . . . . Explosions 1144 | . . 272 872 Melee 300 | . . . 300 Ramming 32 | 11 . 21 . Kinetic 680 | 33 95 81 471 Thermal 369 | 75 40 87 167 Explosive 1144 | . . 272 872 Electromagnetic . | . . . . Impact 300 | . . . 300 Slashing . | . . . . Piercing . | . . . . Highest Corruption 10 | . . . 10 Average Corruption 10 | . . . 10 Corruption Purged . | . . . . Corruption Blocked . | . . . . Effects 3 | . . . 3 Matter Fused 1 | . . . 1 Heat Flow Errors 1 | . . . 1 Data Loss (minor) 1 | . . . 1 Overload Shots . | . . . . Overflow Damage 28 | . . 13 15 Projectiles . | . . . . Explosions 13 | . . 13 . Melee 15 | . . . 15 Knockbacks . | . . . . Impact . | . . . . Kinetic . | . . . . Secondary . | . . . . Self-Inflicted Damage 18 | . . 18 . Shots 1 | . . 1 . Rammed 9 | 3 . 6 . Targets Rammed 10 | 3 . 7 . Kicked . | . . . . Crushed 1 | . . 1 . Highest Temperature 108 | 54 27 108 83 Average Temperature 24 | 24 10 42 19 Received Heat Transfer 255 | . . 93 162 Siege Activations . | . . . . Robots Corrupted 1 | . . . 1 Combat Hostiles 1 | . . . 1 Parts Fried 1 | . . . 1 Impact Corruptions 2 | . . . 2 Robots Melted . | . . . . Combat Hostiles . | . . . . Parts Melted 3 | 1 1 1 . Heat Transferred 866 | 222 111 333 200 Parts Sabotaged . | . . . . Parts Stolen . | . . . . Parts Stripped . | . . . . Power Chain Reactions . | . . . . Alert | -11 -10 -10 -10 ------- Run | Yrd Mat Min Sub Peak Influence 194 | 20 103 194 . Initial 39 | . 13 39 . Average 45 | 4 42 52 . Maximum Alert Level . | . . . . Low Security (%) 100 | 100 100 100 . Level 1 . | . . . . Level 2 . | . . . . Level 3 . | . . . . Level 4 . | . . . . Level 5 . | . . . . High Security . | . . . . Max Security . | . . . . Squads Dispatched 2 | . 1 1 . Investigation . | . . . . Extermination . | . . . . Reinforcement 1 | . 1 . . Assault 1 | . . 1 . Garrison . | . . . . Intercept . | . . . . Searches Triggered . | . . . . Construction Impeded . | . . . . Haulers Reinforced . | . . . . Active Scanning Responses . | . . . . Cargo Convoy Interrupts . | . . . . Stealth | -11 -10 -10 -10 --------- Run | Yrd Mat Min Sub Distress Signals . | . . . . Communications Jammed . | . . . . Distress Signals . | . . . . Times Spotted 39 | . 8 11 20 Peak Tracking Total 4 | . 3 4 3 Tactical Retreats 5 | . 2 1 2 Traps | -11 -10 -10 -10 ------- Run | Yrd Mat Min Sub Traps Triggered . | . . . . Indirectly . | . . . . Trap Hack Attempts . | . . . . Triggered . | . . . . Disarmed . | . . . . Reprogrammed . | . . . . Reused . | . . . . Traps Extracted . | . . . . Installed . | . . . . Triggered 1 | . . 1 . Machines | -11 -10 -10 -10 ---------- Run | Yrd Mat Min Sub Machines Disabled 2 | . . . 2 Max in Single Turn 2 | . . . 2 Machines Repaired . | . . . . Machines Dismantled . | . . . . Machines Sabotaged . | . . . . Overloaded Fab Kills . | . . . . Hacking | -11 -10 -10 -10 --------- Run | Yrd Mat Min Sub Machines Accessed 5 | . 5 . . Terminals 5 | . 5 . . Fabricators . | . . . . Repair Stations . | . . . . Recycling Units . | . . . . Scanalyzers . | . . . . Garrison Access . | . . . . Total Hacks 11 | . 11 . . Successful 4 | . 4 . . Failed 7 | . 7 . . Catastrophic . | . . . . Database Lockouts . | . . . . Manual 10 | . 10 . . Terminals 11 | . 11 . . Fabricators . | . . . . Repair Stations . | . . . . Recycling Units . | . . . . Scanalyzers . | . . . . Garrison Access . | . . . . Terminal Hacks 2 | . 2 . . Robot Analysis 2 | . 2 . . Fabricator Hacks . | . . . . Repair Station Hacks . | . . . . Recycling Unit Hacks . | . . . . Scanalyzer . | . . . . Garrison Access Hacks . | . . . . Unauthorized Hacks 2 | . 2 . . Terminals 2 | . 2 . . Track 1 | . 1 . . Disrupt 1 | . 1 . . Fabricators . | . . . . Repair Stations . | . . . . Recycling Units . | . . . . Scanalyzers . | . . . . Garrison Access . | . . . . Data Cores Recovered . | . . . . Used . | . . . . Hacking Detections 4 | . 4 . . Full Trace Events . | . . . . Feedback Events . | . . . . Feedback Blocked . | . . . . Robot Schematics Acquired . | . . . . Robots Built . | . . . . Authchips . | . . . . Time . | . . . . Total Robot Build Rating . | . . . . Part Schematics Acquired . | . . . . Parts Built . | . . . . Authchips . | . . . . Time . | . . . . Total Part Build Rating . | . . . . Parts Repaired . | . . . . Time . | . . . . Parts Recycled . | . . . . Recycled Matter . | . . . . Retrieved Matter . | . . . . Retrieved Components . | . . . . Parts Scanalyzed . | . . . . Part Schematics Acquired . | . . . . Parts Damaged . | . . . . Bothacking | -11 -10 -10 -10 ------------ Run | Yrd Mat Min Sub Used RIF Installer . | . . . . Robots Hacked . | . . . . Non-combat . | . . . . Combat . | . . . . Robot Hacks Applied . | . . . . Relay Couplers Released . | . . . . Fabnet Peak Effective % . | . . . . Robots Rewired . | . . . . Allies Hacked . | . . . . Hacks Repelled . | . . . . Allies | -11 -10 -10 -10 -------- Run | Yrd Mat Min Sub Total Allies 2 | . . 2 . Largest Group 1 | . . 1 1 Highest-Rated Group 31 | . . 31 31 Highest-Rated Ally 31 | . . 31 31 Total Orders . | . . . . Ally Attacks 19 | . . 16 3 Total Damage 274 | . . 232 42 Kills 4 | . . 4 . Allies Corrupted . | . . . . Allies Melted . | . . . . Intel | -11 -10 -10 -10 ------- Run | Yrd Mat Min Sub Robot Analysis Total 2 | . 2 . . Derelict Logs Recovered 2 | . . 1 1 Drone Launches . | . . . . Drone Recoveries . | . . . . Exploration | -11 -10 -10 -10 ------------- Run | Yrd Mat Min Sub Turns Passed 3667 | 153 574 1111 1829 Spaces Moved 1718 | 70 303 535 810 Core 8 | 3 . . 5 Treads 1238 | 67 303 535 333 Legs . | . . . . Wheels 472 | . . . 472 Hover . | . . . . Flight . | . . . . Fastest Speed 50 | 50 160 160 140 Average Speed 185 | 155 160 193 192 Slowest Speed 800 | 160 160 240 800 Overloaded Moves . | . . . . Propulsion Burnouts . | . . . . Robots Hopped . | . . . . Cave-ins Triggered 1 | . . . 1 Exploration Rate (%) 46 | 7 51 83 46 Regions Visited 3 Branch Regions 2 Pre-discovered Areas 1 | . . 1 . Known Exits Taken . | . . . . Unknown Exits Taken 3 | 1 1 1 . Scrap Searched 5 | . . 1 4 Spaces Dug 23 | . 3 14 6 Terrain Destroyed 55 | . 3 14 38 Melee 7 | . 1 . 6 Projectile 2 | . 2 . . AOE 46 | . . 14 32 Terrain Rammed . | . . . . Walls Destroyed . | . . . . Machines Disabled . | . . . . Actions | -11 -10 -10 -10 --------- Run | Yrd Mat Min Sub Total 1991 | 95 365 584 947 Wait 85 | . 34 24 27 Move 1715 | 69 302 534 810 Hop . | . . . . Pick Up 30 | 8 7 2 13 Fast Attach 7 | 4 1 . 2 Attach 10 | 3 1 . 6 Detach 1 | . . . 1 Swap 16 | . 2 4 10 Drop 6 | . 4 2 . Fire 73 | 8 13 11 41 Melee 38 | . 1 . 37 Ram . | . . . . Kick . | . . . . Crush 10 | 3 . 7 . Escape Stasis . | . . . . Rewire . | . . . . Trap . | . . . . Miscellaneous . | . . . . Route ------- -11/Scrapyard -10/Materials (discovered 2 exits: [*Mat] / [*Min]) -10/Mines (discovered 3 exits: [*Mat x2] / [*Sub]) -10/Subcaves History --------- Turn | Location | Event 2 | -11/Scrapyard | Met Revision 17 4 | -11/Scrapyard | Discovered new exit (range 16) 154 | -11/Scrapyard | Entered Materials 317 | -10/Materials | Build established: Mutant 471 | -10/Materials | Discovered new exit (range 5) 719 | -10/Materials | Discovered new exit (range 6) 728 | -10/Materials | Entered Mines 839 | -10/Mines | Discovered new exit (range 10) 846 | -10/Mines | Learned location of Storage (-8) 866 | -10/Mines | Received a Mining Laser from a helpful Derelict 985 | -10/Mines | Discovered new exit (range 9) 1264 | -10/Mines | Found a damaged Exp. Sensor Array with a note attached 1272 | -10/Mines | Found Prototype Device 1308 | -10/Mines | Met a Derelict testing a Signal Generator 1825 | -10/Mines | Discovered new exit (range 6) 1839 | -10/Mines | Entered Subcaves 1839 | -10/Subcaves | Accompanied by 1 ally 2101 | -10/Subcaves | Shifting Twisted Machinery released Mak. Thermal Plating 2181 | -10/Subcaves | Learned Materials stockpile data 2331 | -10/Subcaves | A swath of the cavern ceiling suddenly collapsed 3587 | -10/Subcaves | Ambushed by angry Subdweller bent on revenge 3604 | -10/Subcaves | Core integrity fell below 50% 3607 | -10/Subcaves | Crushed by falling debris 3607 | -10/Subcaves | System corruption reached 10% 3612 | -10/Subcaves | Core integrity fell below 20% 3649 | -10/Subcaves | Lost 5 parts (1p2n2w) 3668 | -10/Subcaves | Destroyed by 9D-GY5(R) with Subdweller Machine Gun Last Messages --------------- 03596_ Lgt. Treads destroyed. 03606_ U4-NZP(R) destroyed. 03607_ The unstable cave ceiling collapses. 03607_ Crushed by falling debris. 03607_ Sub. Laser destroyed. 03607_ System corrupted by crushing effect (+3). 03607_ Barrage Gun destroyed. 03607_ System corrupted by crushing effect (+2). 03607_ Lgt. Angular Momentum Engine destroyed. 03607_ System corrupted by crushing effect (+5). 03612_ System corrupted: Component data lost. 03612_ Acquired Multitool. 03615_ Acquired 44 matter. 03618_ Wheel destroyed. 03618_ Acquired Sub. Laser. 03626_ AB-ZKR(R) destroyed. 03628_ Acquired 10 matter. 03632_ System corrupted: Heat flow error (+126). 03662_ System corrupted: Matter fused (-10). 03668_ Acquired Wheel. Map ----- +----------------------------------------------------+ | ??????????????????????????????????????# | | ??????????????????????????????????????## | | ???????????????????????????????????????##### | | ???????????????????????????????????????????## | | #???????????????????????????????????????????#### | | #???????????#??????????????????????????########### | | ##?????????? ?????????????????????????## ## ## | | ###???????# ????????????????????????## # | | #?????##^ ????????????????????????# % ###" | | #?????# ???????????????????####### ## ####"" | | ####?????# ^???##??????????????# #### ##" | | ###??????# #??""???????????????# ## # # #" | | "#??????# ### #??#????????????# # "#?#" | | "#??????# " ?## ????????????# ?# ##?## | | "##????##"""" ?## "?""?????????# ??# ####???? | | #???## #"??# """ ###??????###???# ##?????? | | ##??## #### "" ""######????#### #?????? | | ##?## ""# """" "" "#?#### # #?????? | | ### "" """" "#?# ##?????? | | " #"" # "" "??## ###??????? | | " #### ## # "" "### # ##????????? | | " "#??## " "" ### #""##?????????? | | "" "#???# * #######"" # "#??????????? | | " ##??## ""%& ; ;; ### #?????????? | | "##### &! "## ##?????????? | | ### "" @ ## #??????????? | | ## """ / "##"#??????????? | | ## #### ! ;#%[R"# "#??????????? | | "#??#; & ;##"""" ??????????? | | ##??#; ##""" ?????????? | | ##### #???##;; ; ##"""## ?????????? | | ####### ##???####????######## #""##? "?????????? | | ??????###????????????????????##?#????###?????????? | | ?????????????????????????????????????????????????? | | ?????????????????????????????????????????????????? | | ?????????????????????????????????????????????????? | | ?????????????????????????????????????????????????? | | ?????????????????????????????????????????????????? | | ?????????????????????????????????????????????????? | | ?????????????????????????????????????????????????? | | ?????????????????????????????????????????????????? | | ?????????????????????????????????????????????????? | | ?????????????????????????????????????????????????? | | ?????????????????????????????????????????????????? | | ?????????????????????????????????????????????????? | | ?????????????????????????????????????????????????? | | ?????????????????????????????????????????????????? | | | | | | | +----------------------------------------------------+ Best States ------------- Heat Dissipation 25 Energy Generation 18 Energy Capacity 250 Matter Stores 300 Matter Capacity 300 Sight Range 16 Terrain Scan Density 10 Armor Coverage 100 Resistance: TH 10 Evasion (%) 40 Recoil Reduction 2 Item Schematics ----------------- None Robot Schematics ------------------ None Fabricated ------------ Nothing Alien Tech Used ----------------- None Achievements -------------- None Challenges ------------ None Game ------ Seed CargoWeaponsExtrapolator Manual? 0 Play Time 00:14:37 Cumulative 793.6 hours Start 2024.08.31 @ 21:33:24 End 2024.09.02 @ 20:28:02 Sessions 3 Manual Loads 0 Difficulty Rogue Special Mode None Game No. 790 Rogue 790 Adventurer 0 Explorer 0 Win Type - Total 39 Types 14/4/11/2/0/0/5/2/1 Lore% 96 Gallery% 92 Achievement% 84 Wizard Run 0 Options --------- Layout 0 ASCII 0 Keyboard 0 Movement Numpad Keybinds 0 Fullscreen 1 Font 18/Smallcaps Map View 76x50 Zoom Use 0% Tactical HUD 1 Map Filters NONE Filters NONE Steam 1 RUN: 371c76e8-92d6-4a9a-a085-463d9922700f